bitfinex/quotes_ETHUSD_20241130
["timestamp","ask_amount","ask_price","bid_price","bid_amount"]
[1732939721835,0.55,3651.4,3650.9,2.73904]
[1732939721836,0.93929063,3651.4,3651.1,2.73883]
[1732939722138,0.93929063,3651.4,3651.2,2.73878]
[1732939722338,0.55,3651.6,3650.6,1.5627]
[1732939722503,0.55,3651.6,3651.2,2.73875]
[1732939722706,0.55,3651.6,3651.3,2.7387]
[1732939723036,0.55,3651.4,3651.2,2.73875]
[1732939723239,0.55,3651.4,3651.0,2.73896]
[1732939723939,0.10401043,3651.0,3650.3,1.5627]
[1732939724256,0.55,3650.9,3650.8,2.73912]
[1732939724955,0.55,3650.9,3650.8,4.30182]
[1732939726029,0.10401043,3651.0,3650.9,2.73905]
[1732939727338,0.65401043,3651.0,3650.9,2.73905]
[1732939728009,4.3e-07,3651.0,3650.9,7.36505]
[1732939728131,0.80520547,3652.4,3652.3,2.738]
[1732939728333,0.29632165,3652.4,3652.3,2.738]
[1732939729163,0.29632165,3652.4,3651.9,4.36428]
[1732939729366,0.55,3652.2,3652.0,2.73822]
[1732939729521,0.55,3652.3,3652.0,2.73822]
[1732939729727,0.0567,3652.2,3651.6,2.7385]
[1732939729927,0.55,3652.0,3651.6,2.73847]
[1732939730170,0.55,3651.6,3651.1,2.73885]
[1732939730335,0.55,3651.4,3651.1,2.73885]
[1732939730540,0.55,3651.6,3651.1,2.73885]
[1732939730778,0.55,3651.4,3651.1,2.73885]
[1732939731077,0.55,3651.4,3651.3,2.73875]
[1732939731376,0.55,3651.6,3651.1,2.73885]
[1732939731573,0.55,3651.4,3651.2,2.73882]
[1732939731790,0.55,3651.4,3650.6,4.36523]
[1732939731996,0.55,3651.4,3651.2,2.73882]
[1732939732145,0.55,3651.4,3651.0,2.73896]
[1732939732346,0.55,3651.4,3651.3,2.73875]
[1732939733001,0.55,3651.6,3651.4,4.36467]
[1732939733356,0.54319822,3651.7,3651.4,4.36467]
[1732939733357,0.54319822,3651.7,3651.6,2.73852]
[1732939733555,0.25566915,3652.4,3652.3,2.738]
[1732939733772,4.25566915,3652.4,3652.3,2.738]
[1732939734085,4.25566915,3652.4,3651.4,1.626]
[1732939734086,0.68690607,3652.4,3651.8,2.73831]
[1732939734281,0.25566915,3652.3,3651.4,1.626]
[1732939734491,0.54148873,3652.4,3652.0,2.73819]
[1732939734658,0.54148873,3652.4,3651.9,2.73829]
[1732939734844,0.54148873,3652.4,3651.7,2.7384]
[1732939734845,3.27946873,3652.4,3651.7,2.7384]
[1732939735041,1.07320702,3652.3,3651.8,2.73836]
[1732939735245,0.25568104,3652.2,3651.8,2.73836]
[1732939735448,0.55,3652.2,3651.5,2.73857]
[1732939735675,0.55,3651.9,3651.5,2.73857]
[1732939735945,0.55,3651.9,3651.3,2.73873]
[1732939736146,0.55,3651.7,3651.1,2.73887]
[1732939736390,0.55,3651.5,3651.2,2.73881]
[1732939736607,0.55,3651.5,3651.1,2.73887]
[1732939736756,0.55,3651.5,3651.2,2.7388]
[1732939737362,0.55,3651.7,3651.2,2.7388]
[1732939738259,0.55,3651.5,3651.2,2.7388]
[1732939738595,0.91012177,3651.5,3651.3,2.73872]
[1732939739087,0.55,3651.7,3651.3,2.73872]
[1732939739297,0.46653247,3651.8,3651.3,2.73872]
[1732939739298,0.55,3651.5,3651.3,2.73872]
[1732939739503,0.55,3651.5,3651.1,2.7389]
[1732939739707,0.55,3651.7,3651.2,2.73882]
[1732939739873,0.25636956,3651.6,3651.2,2.73882]
[1732939740082,0.80636956,3651.5,3651.2,2.73882]
[1732939740290,0.55,3651.3,3651.2,2.73882]
[1732939740466,0.55,3651.5,3651.2,2.73882]
[1732939740866,0.25638757,3651.4,3651.2,2.73882]
[1732939741113,0.55,3651.5,3651.2,2.73882]
[1732939741265,0.25638337,3651.4,3651.2,2.73882]
[1732939741599,0.55,3651.5,3651.1,2.73889]
[1732939741907,0.55,3651.3,3651.2,2.73882]
[1732939742200,0.55,3651.3,3651.0,2.73891]
[1732939742414,0.55,3651.3,3650.9,2.73898]
[1732939742415,0.55,3651.3,3651.1,2.73889]
[1732939742568,0.55,3651.5,3651.1,2.73889]
[1732939742910,0.55,3651.3,3651.1,2.73885]
[1732939743221,0.55,3651.4,3650.9,2.73898]
[1732939743416,0.55,3651.2,3650.9,2.73898]
[1732939743867,0.55,3651.4,3650.9,2.73898]
[1732939744067,0.55,3651.2,3650.9,2.73898]
[1732939744371,0.55,3651.4,3650.9,2.73898]
[1732939744593,0.55,3651.2,3651.0,2.73895]
[1732939745369,0.55,3651.4,3651.0,2.73895]
[1732939745592,0.55,3651.2,3651.0,2.73895]
[1732939745907,0.55,3651.4,3651.0,2.73895]
[1732939746072,0.25635783,3651.3,3650.8,2.7391]
[1732939746393,0.55,3651.0,3650.5,2.73929]
[1732939746565,0.25634583,3650.9,3650.5,2.73929]
[1732939746764,0.55,3651.0,3650.5,2.73929]
[1732939746964,0.55,3650.8,3650.5,2.73929]
[1732939747202,0.55,3651.0,3650.5,2.73929]
[1732939747411,0.55,3650.8,3650.5,2.73929]
[1732939747621,0.55,3650.8,3649.5,1.5644]
[1732939747820,0.55,3650.8,3650.2,2.73956]
[1732939747821,0.55,3650.6,3650.2,2.73956]
[1732939748118,0.55,3650.4,3650.2,2.73956]
[1732939748319,0.55,3650.4,3650.1,2.73965]
[1732939748616,0.55,3650.2,3650.1,2.73965]
[1732939750533,0.55,3650.2,3649.5,1.5644]
[1732939750709,0.55,3650.2,3650.0,2.73971]
[1732939750910,0.8208011,3650.2,3650.0,2.73971]
[1732939751212,0.8208011,3650.2,3649.8,2.73982]
[1732939751775,0.8208011,3650.2,3649.8,2.73983]
[1732939752111,0.8208011,3650.2,3650.0,2.73972]
[1732939752408,0.55,3650.2,3650.1,2.73965]
[1732939752932,0.55,3650.6,3650.2,2.73951]
[1732939753289,0.55,3650.6,3650.1,2.73963]
[1732939753492,0.8057646,3650.6,3650.1,2.73962]
[1732939753688,0.55,3650.4,3650.1,2.73962]
[1732939753884,0.55,3650.4,3649.5,1.5644]
[1732939754177,0.55,3650.4,3649.8,2.73981]
[1732939754382,0.55,3650.4,3649.8,2.68981]
[1732939754620,0.55,3650.4,3649.5,1.5644]
[1732939754773,0.55,3650.4,3650.0,2.7397]
[1732939755086,0.55,3650.4,3649.5,1.5644]
[1732939755295,0.55,3650.4,3649.9,2.73976]
[1732939755508,0.42862209,3650.5,3649.7,2.73994]
[1732939755509,0.55,3650.2,3649.7,2.73994]
[1732939755705,0.55,3650.2,3649.8,2.73985]
[1732939755916,0.55,3650.2,3649.6,2.73999]
[1732939756221,3.34635,3650.1,3649.5,2.74009]
[1732939756423,0.6067,3650.1,3649.5,2.74009]
[1732939756623,0.2708011,3650.0,3649.6,2.73996]
[1732939756783,0.2708011,3650.0,3649.4,0.1552998]
[1732939756784,0.55,3649.9,3649.4,0.1552998]
[1732939756980,0.55,3649.9,3649.5,2.74006]
[1732939757180,0.55,3649.9,3649.4,0.1552998]
[1732939757385,0.55,3649.9,3649.4,2.8954598]
[1732939757589,0.55,3649.7,3649.4,0.1552998]
[1732939758228,0.55,3649.5,3649.4,0.1552998]
[1732939760331,0.55,3649.5,3648.3,1.5644]
[1732939760332,0.55,3649.2,3648.3,1.5644]
[1732939760531,2.65131105,3649.5,3648.9,2.74048]
[1732939760681,2.74023,3649.4,3648.7,2.74064]
[1732939760884,0.55,3649.2,3648.8,2.74055]
[1732939761316,0.55,3649.2,3648.9,2.7405]
[1732939761516,0.55,3649.2,3648.7,2.74064]
[1732939761715,0.55,3649.2,3648.8,2.74062]
[1732939762087,0.55,3649.2,3649.0,2.74042]
[1732939762285,0.55,3649.1,3649.0,2.74042]
[1732939765221,1.08650522,3649.1,3649.0,2.74047]
[1732939765824,3.88365522,3649.1,3648.5,2.74084]
[1732939766123,0.55,3648.8,3648.1,2.74114]
[1732939766337,2.74055,3648.9,3647.9,1.5644]
[1732939766338,0.55,3648.6,3647.9,4.30568]
[1732939766641,0.55,3648.6,3648.1,2.74113]
[1732939766818,3.29084,3648.6,3647.9,4.30568]
[1732939767022,3.29084,3648.6,3647.3,2.74175]
[1732939767023,0.55,3648.4,3648.0,2.74122]
[1732939767420,0.55,3648.4,3647.7,2.74144]
[1732939767755,2.74103,3648.3,3647.7,2.74144]
[1732939767920,0.55,3648.2,3647.3,1.6627]
[1732939768116,0.55,3648.2,3647.5,2.7416]
[1732939768360,0.55,3648.2,3647.7,2.74139]
[1732939768542,0.55,3648.2,3647.8,2.74132]
[1732939768715,0.55,3648.2,3648.0,2.74122]
[1732939768919,0.55,3647.9,3647.7,2.74138]
[1732939769124,0.55,3647.9,3646.7,4.4049]
[1732939769125,0.55,3647.9,3647.4,2.74165]
[1732939769364,0.884793,3647.9,3646.7,1.6627]
[1732939769663,0.55,3648.0,3647.5,2.74154]
[1732939769881,0.55,3648.0,3647.3,1.6627]
[1732939769882,0.55,3647.8,3647.4,2.74163]
[1732939770015,3.29124,3648.0,3647.4,2.74163]
[1732939770219,0.55,3648.0,3647.3,2.74175]
[1732939770758,0.55,3648.0,3647.5,2.74156]
[1732939770927,0.55,3647.8,3647.3,2.74175]
[1732939771129,0.55,3647.8,3646.9,2.74202]
[1732939771654,3.29139,3647.8,3647.2,2.74182]
[1732939772363,3.29139,3647.8,3646.7,1.6627]
[1732939772364,0.55,3647.6,3646.7,1.6627]
[1732939772547,0.55,3647.6,3647.5,2.7416]
[1732939772751,0.55,3647.8,3647.5,2.7416]
[1732939773076,0.55,3647.8,3647.7,2.74145]
[1732939773317,0.70528662,3647.8,3647.3,2.74175]
[1732939773488,0.70528662,3647.8,3646.7,4.40485]
[1732939773804,0.70528662,3647.8,3647.3,2.74169]
[1732939774424,0.70528662,3647.8,3646.7,4.40485]
[1732939774425,0.70528662,3647.8,3647.4,2.74167]
[1732939775015,0.70528662,3647.8,3647.4,2.74161]
[1732939775232,0.55,3647.6,3647.4,2.74162]
[1732939775516,0.0567,3647.5,3646.7,1.6627]
[1732939775823,0.55,3647.4,3647.3,2.74174]
[1732939776910,0.55,3647.6,3647.3,2.74174]
[1732939777092,0.54281317,3648.1,3647.4,1.6627]
[1732939777428,2.10131105,3648.5,3647.8,2.74137]
[1732939777724,2.10131105,3648.5,3647.9,2.74129]
[1732939777725,0.54002742,3648.3,3647.9,2.74129]
[1732939777929,3.28102742,3648.3,3647.7,2.74139]
[1732939778075,0.54002742,3648.3,3647.6,2.7415]
[1732939778275,0.55,3648.2,3647.1,1.6627]
[1732939778477,0.55,3648.2,3647.7,2.74144]
[1732939778706,0.55,3648.0,3647.4,2.74161]
[1732939778921,0.55,3648.0,3647.5,2.74155]
[1732939779123,0.55,3648.0,3647.6,2.74152]
[1732939779710,0.55,3648.0,3647.8,2.74134]
[1732939780024,0.55,3648.0,3647.4,2.74166]
[1732939780025,0.55,3647.8,3647.4,2.74166]
[1732939780234,0.55,3647.6,3647.4,2.74166]
[1732939780730,0.55,3648.0,3647.8,2.7413]
[1732939780932,0.80520099,3648.1,3647.8,2.7413]
[1732939781102,0.25520099,3648.1,3648.0,2.74122]
[1732939781301,0.21013111,3648.4,3648.2,2.74107]
[1732939782185,0.25522874,3648.7,3648.2,2.74107]
[1732939782381,2.15801105,3649.3,3648.2,4.40377]
[1732939782633,0.25528887,3649.2,3648.2,4.40377]
[1732939782932,0.25528887,3649.2,3647.2,2.10131105]
[1732939782933,0.0567,3649.0,3647.6,4.40422]
[1732939783124,0.0567,3649.0,3648.5,2.74078]
[1732939783422,0.2553912,3648.9,3648.4,2.74088]
[1732939783625,0.55,3648.7,3648.3,2.74097]
[1732939783826,0.55,3648.8,3648.4,2.74092]
[1732939784011,0.55,3648.6,3648.4,2.74092]
[1732939784386,0.0567,3649.0,3647.9,2.74125]
[1732939784588,1.11114708,3648.6,3648.5,2.74085]
[1732939786092,1.11114708,3648.6,3647.5,2.74159]
[1732939786093,0.55,3648.1,3647.5,2.74159]
[1732939786295,0.6067,3647.9,3647.5,2.74155]
[1732939786491,0.96705139,3647.9,3647.5,2.74155]
[1732939786927,0.6067,3647.9,3647.5,2.74155]
[1732939787327,0.6067,3647.9,3647.6,2.74151]
[1732939787717,0.6067,3647.9,3647.7,2.74143]
[1732939788244,0.6067,3647.9,3647.5,2.74155]
[1732939789935,0.0567,3648.5,3648.1,2.74112]
[1732939790130,0.81090134,3648.3,3647.9,2.74129]
[1732939790306,0.55287111,3648.2,3646.6,1.9253]
[1732939790503,0.25597987,3648.1,3647.9,2.74124]
[1732939790735,0.29689124,3648.2,3647.7,2.74143]
[1732939791041,0.25606915,3648.1,3647.7,2.74143]
[1732939791234,0.29689124,3648.2,3647.8,2.74137]
[1732939791412,0.86652289,3648.1,3647.9,2.7413]
[1732939791617,0.61038468,3648.1,3647.9,2.7413]
[1732939791833,0.55,3648.0,3647.9,2.7413]
[1732939792000,0.6067,3648.0,3647.9,2.7413]
[1732939792214,0.86290409,3648.0,3647.2,2.74179]
[1732939792512,0.6067,3648.0,3647.9,2.7413]
[1732939792731,0.55,3648.0,3647.9,2.7413]
[1732939792912,0.55,3648.1,3648.0,2.74122]
[1732939793112,0.80619845,3648.1,3647.9,2.7413]
[1732939793329,0.55,3648.0,3647.9,2.7413]
[1732939793543,0.69018127,3648.0,3647.7,2.74142]
[1732939793746,0.55,3647.9,3647.8,2.74137]
[1732939795205,0.55,3648.1,3647.9,2.74127]
[1732939795518,0.55,3647.9,3647.8,2.74136]
[1732939795707,0.55,3648.1,3647.9,2.74125]
[1732939795908,0.80654917,3648.0,3647.9,2.74125]
[1732939796108,0.8065499,3648.0,3647.9,2.74125]
[1732939797903,0.0567,3647.9,3646.4,1.9253]
[1732939798161,0.80662095,3647.8,3647.7,2.74145]
[1732939798709,0.55,3648.0,3647.9,2.7413]
[1732939798932,0.98748312,3648.0,3647.9,2.7413]
[1732939799687,0.80660061,3648.0,3647.9,2.7413]
[1732939799974,0.55,3648.2,3647.9,2.7413]
[1732939800174,0.55,3648.2,3648.1,2.74115]
[1732939800481,0.80659175,3648.2,3648.1,2.74115]
[1732939801379,0.25659175,3648.2,3648.1,2.74115]
[1732939801673,0.55492147,3648.3,3648.2,2.74107]
[1732939802236,0.25655546,3648.8,3648.2,2.74107]
[1732939802460,2.15801105,3649.2,3648.7,2.7407]
[1732939802659,2.15801105,3649.2,3648.2,2.74107]
[1732939802660,0.78735404,3649.1,3648.8,2.74062]
[1732939802852,0.25648162,3649.0,3648.8,2.74062]
[1732939803173,0.53087242,3649.1,3649.0,2.74047]
[1732939803481,0.61213918,3649.5,3649.1,2.74035]
[1732939803692,0.25638001,3649.4,3649.2,2.74032]
[1732939803862,0.25638001,3649.3,3649.2,2.74032]
[1732939804071,2.24413498,3649.6,3649.3,2.74024]
[1732939804278,0.25622514,3649.5,3649.3,2.74024]
[1732939804483,0.53899968,3649.4,3649.3,4.39185]
[1732939804686,0.25620773,3649.9,3649.3,1.6516]
[1732939804999,0.40993236,3650.4,3650.3,2.7395]
[1732939805208,2.15801105,3650.5,3650.3,2.7395]
[1732939805348,0.55491233,3650.4,3650.1,2.73965]
[1732939805572,0.28556746,3650.3,3650.2,2.73957]
[1732939805915,0.55491233,3650.4,3650.3,2.7395]
[1732939806213,2.73902,3651.0,3650.1,2.73963]
[1732939806370,2.79552,3651.2,3650.6,2.73927]
[1732939806544,0.25550961,3651.1,3650.6,2.73927]
[1732939806738,2.79552,3651.2,3650.6,2.73927]
[1732939807003,0.76355111,3651.1,3650.3,2.73944]
[1732939807169,0.76355111,3651.1,3650.5,2.73934]
[1732939807357,0.55,3651.0,3650.5,2.73934]
[1732939807563,0.54897874,3650.7,3650.6,4.25537]
[1732939807886,0.0567,3651.6,3651.0,2.73894]
[1732939808067,0.48964711,3651.5,3650.6,1.5161]
[1732939808284,0.0567,3651.6,3651.3,2.73873]
[1732939808583,2.65944675,3651.7,3651.4,2.73866]
[1732939808748,2.65944675,3651.7,3650.7,2.7392]
[1732939809095,2.65944675,3651.7,3651.2,2.73875]
[1732939809288,2.65944675,3651.7,3651.3,2.73871]
[1732939809581,0.55,3651.5,3651.3,2.73871]
[1732939809964,0.55,3651.5,3651.3,2.0961562]
[1732939810163,0.55,3651.5,3651.4,2.73867]
[1732939810373,0.27161468,3651.6,3651.5,2.7386]
[1732939811163,2.10131105,3651.7,3651.6,2.73852]
[1732939811378,2.10131105,3651.7,3651.0,2.73891]
[1732939811379,2.10131105,3651.7,3651.0,4.39131]
[1732939811699,2.10131105,3651.7,3651.5,2.73856]
[1732939812011,2.10131105,3651.7,3651.6,2.73852]
[1732939812288,2.65131105,3651.7,3651.6,2.73852]
[1732939812488,0.55,3651.6,3651.0,1.6524]
[1732939812708,0.55,3651.6,3650.9,2.73897]
[1732939812857,0.55,3651.6,3651.0,2.73893]
[1732939813046,0.0567,3651.5,3651.0,2.73893]
[1732939813257,0.0567,3651.5,3650.9,2.73897]
[1732939813258,0.55,3651.4,3650.9,2.73897]
[1732939813492,1.12116022,3651.4,3650.7,1.6524]
[1732939813684,0.55,3651.6,3651.4,2.73867]
[1732939813895,0.55,3651.6,3651.5,2.7386]
[1732939814353,2.66202385,3652.1,3651.4,1.6524]
[1732939814553,2.66202385,3652.1,3652.0,2.73822]
[1732939815000,2.66202385,3652.1,3651.8,2.73837]
[1732939815167,2.66202385,3652.1,3651.0,1.6524]
[1732939815168,0.28613776,3652.0,3651.0,1.6524]
[1732939815363,0.0567,3651.6,3650.1,3.0]
[1732939815697,0.0567,3651.6,3649.7,0.1]
[1732939815698,0.0567,3651.6,3651.0,2.73891]
[1732939815992,0.55,3651.5,3651.0,2.73891]
[1732939816212,0.55,3651.5,3651.1,2.73889]
[1732939816357,0.55,3651.3,3651.1,2.73889]
[1732939816553,0.55,3651.3,3651.2,2.73882]
[1732939816755,0.55,3651.5,3651.3,2.73874]
[1732939816985,0.28613776,3652.0,3651.9,2.7383]
[1732939817511,0.28613776,3652.0,3651.8,2.73832]
[1732939817997,0.28613776,3652.0,3651.9,2.7383]
[1732939818357,0.83613776,3652.0,3651.9,2.7383]
[1732939820373,0.55,3652.0,3651.9,2.7383]
[1732939821297,0.55,3652.0,3651.7,2.73842]
[1732939821458,0.55,3651.9,3651.7,2.73842]
[1732939821856,0.55,3652.0,3651.9,2.7383]
[1732939822113,0.55,3652.1,3652.0,2.73822]
[1732939822285,0.53578916,3652.2,3652.1,2.73815]
[1732939822620,0.53484962,3652.9,3652.2,1.59440626]
[1732939822812,2.63616067,3652.9,3652.2,1.59440626]
[1732939823016,0.37821607,3652.8,3652.2,4.33247626]
[1732939823168,4.83922105,3652.5,3651.0,2.73897]
[1732939823366,2.10131105,3652.1,3651.8,2.73836]
[1732939823566,2.10131105,3652.1,3651.7,2.73839]
[1732939823775,0.55,3652.0,3651.7,2.73839]
[1732939823977,0.55,3651.8,3651.7,2.73839]
[1732939827190,0.55,3652.1,3651.7,2.73839]
[1732939827388,0.55,3652.2,3651.3,1.6524]
[1732939827728,0.55,3652.2,3651.8,2.73832]
[1732939827885,0.55,3652.0,3651.8,2.73832]
[1732939828402,0.55,3652.2,3651.8,2.73832]
[1732939829126,2.10131105,3651.9,3651.5,2.73858]
[1732939829341,2.10131105,3651.9,3650.6,0.2737]
[1732939829342,0.55,3651.8,3650.9,1.5148]
[1732939829490,0.55,3651.3,3650.8,2.73912]
[1732939829829,0.55,3651.3,3651.0,2.73892]
[1732939830126,0.55,3651.3,3650.7,1.5148]
[1732939830289,3.28875,3651.3,3650.7,1.5148]
[1732939830491,0.55,3650.9,3650.3,2.7395]
[1732939830687,0.55,3650.7,3650.2,1.5148]
[1732939830896,0.55,3650.7,3650.4,2.7394]
[1732939831256,0.55,3650.5,3649.9,4.25459]
[1732939831392,0.55,3650.5,3650.1,2.73959]
[1732939831725,0.55,3650.5,3649.9,4.25459]
[1732939831932,0.88049332,3650.5,3650.1,2.73964]
[1732939832128,0.88049332,3650.5,3649.9,1.5148]
[1732939832312,0.88049332,3650.5,3650.4,2.73942]
[1732939832903,2.73867,3651.4,3650.7,2.73917]
[1732939832904,0.55,3650.9,3650.7,2.73917]
[1732939833089,0.55550987,3651.2,3651.1,2.7389]
[1732939833298,2.10131105,3651.4,3651.1,2.7389]
[1732939833299,0.25552519,3651.3,3651.1,2.7389]
[1732939833505,2.10131105,3651.4,3651.1,2.7389]
[1732939834604,2.65131105,3651.4,3651.3,2.73875]
[1732939834806,0.80578246,3651.4,3651.3,2.73875]
[1732939835221,0.25578246,3651.4,3651.3,4.25355]
[1732939835431,2.10131105,3651.8,3651.4,2.7386]
[1732939835610,0.47749523,3651.7,3651.4,2.7386]
[1732939835810,0.25590413,3651.6,3651.3,4.25348]
[1732939836004,0.2215911,3651.7,3651.3,4.25348]
[1732939836005,0.25590413,3651.5,3651.3,1.5148]
[1732939836214,0.2215911,3651.7,3651.3,1.5148]
[1732939836215,0.63104463,3651.7,3651.3,1.5148]
[1732939836538,0.55,3651.5,3651.3,1.5148]
[1732939836829,0.55,3651.6,3651.5,2.7386]
[1732939836992,0.55,3651.7,3651.6,2.73847]
[1732939837202,0.80595091,3651.7,3651.6,2.73847]
[1732939838048,0.40958635,3652.2,3652.1,2.7381]
[1732939838201,0.25599193,3652.2,3652.1,2.7381]
[1732939839020,0.66557828,3652.2,3652.1,2.7381]
[1732939839350,1.21557828,3652.2,3652.1,2.7381]
[1732939842000,0.55,3652.1,3651.9,2.73828]
[1732939842201,0.55,3651.9,3651.7,2.73839]
[1732939842427,0.80599193,3651.8,3651.7,2.73845]
[1732939843042,0.55,3651.9,3651.5,2.73855]
[1732939843258,0.55,3651.9,3651.3,1.5148]
[1732939843259,0.55,3651.9,3651.8,2.73834]
[1732939846246,0.55,3651.7,3651.4,2.73863]
[1732939846448,0.55,3651.5,3651.4,2.73863]
[1732939846631,0.55,3651.5,3651.1,2.73887]
[1732939846852,0.55,3651.5,3651.0,1.5148]
[1732939846853,0.55,3651.5,3651.2,2.73877]
[1732939847027,0.55,3651.5,3651.3,2.73874]
[1732939848556,0.55,3651.5,3651.1,2.73888]
[1732939848725,0.55,3651.5,3651.3,2.73867]
[1732939849773,0.55,3651.5,3651.0,1.5148]
[1732939849980,0.55,3651.5,3651.4,2.73867]
[1732939851755,0.1146,3652.1,3651.8,2.73836]
[1732939851756,0.55,3652.0,3651.8,2.73836]
[1732939852156,0.55,3652.0,3651.9,2.7383]
[1732939852360,0.89568654,3652.0,3651.9,2.7383]
[1732939852952,0.89568654,3652.0,3651.8,2.73837]
[1732939853387,0.89568654,3652.0,3651.4,1.6044]
[1732939853549,0.89568654,3652.0,3651.9,2.7383]
[1732939853748,0.89568654,3652.0,3651.8,2.73836]
[1732939854091,0.72012417,3651.9,3651.8,2.73836]
[1732939856025,0.1146,3653.4,3651.9,2.7383]
[1732939856284,0.25597789,3653.3,3652.3,2.738]
[1732939856489,0.25597789,3653.2,3652.9,2.73749]
[1732939856650,0.1146,3653.4,3652.8,2.73757]
[1732939856651,0.25597789,3653.3,3652.8,2.73757]
[1732939856848,0.26135493,3653.2,3652.8,2.73757]
[1732939857086,0.55,3652.9,3652.8,2.73757]
[1732939858174,0.55,3652.9,3652.1,1.6044]
[1732939858390,0.55,3652.9,3652.6,2.73777]
[1732939859497,0.55,3652.9,3652.7,2.73769]
[1732939859734,0.86964701,3652.8,3652.7,2.73769]
[1732939860007,0.55,3652.7,3652.5,2.73784]
[1732939860868,0.6646,3652.7,3652.1,4.34253]
[1732939861203,2.76591105,3652.7,3652.3,2.73799]
[1732939861504,2.76591105,3652.7,3652.1,2.73813]
[1732939861805,0.55,3652.5,3651.9,2.73828]
[1732939862258,0.80575241,3652.5,3651.9,2.73828]
[1732939862861,0.25575241,3652.4,3651.7,2.73844]
[1732939863090,2.65131105,3652.3,3651.7,2.73844]
[1732939863276,0.55,3652.1,3651.8,2.73836]
[1732939863604,0.55,3651.9,3651.8,2.73836]
[1732939863809,0.29070635,3652.0,3651.8,2.73836]
[1732939863810,0.55,3652.5,3652.0,2.73815]
[1732939864017,0.80599065,3652.5,3652.1,2.73809]
[1732939864301,0.55,3652.5,3652.2,2.73806]
[1732939864459,0.55,3652.5,3652.4,2.73792]
[1732939864660,0.55,3652.8,3652.4,2.73792]
[1732939864901,0.80600655,3652.8,3652.4,2.73792]
[1732939865063,0.55,3652.8,3652.4,2.73792]
[1732939865263,0.55,3652.6,3652.4,2.73792]
[1732939865677,0.55,3652.7,3652.4,2.73792]
[1732939865875,0.55,3652.8,3652.5,2.73784]
[1732939866078,0.55,3652.5,3652.3,2.73795]
[1732939866901,0.55,3652.5,3652.3,2.73799]
[1732939867112,0.55,3652.5,3652.2,2.73806]
[1732939867267,0.55,3652.5,3652.4,2.73792]
[1732939867461,0.55,3652.5,3652.2,2.73806]
[1732939867711,0.55,3652.5,3652.3,2.73798]
[1732939868703,0.55,3652.5,3652.4,2.73792]
[1732939869365,0.26135493,3653.2,3652.2,2.73807]
[1732939869366,0.25600655,3653.1,3652.2,2.73807]
[1732939869566,0.25600655,3653.0,3652.7,2.73763]
[1732939869811,0.25600789,3653.0,3652.7,2.73763]
[1732939870162,0.25600789,3653.0,3652.1,1.6044]
[1732939870366,0.25600789,3653.0,3652.5,2.73778]
[1732939870566,0.55,3653.0,3652.5,2.73778]
[1732939871065,0.9881763,3653.0,3652.2,2.76544719]
[1732939871297,0.55,3653.1,3652.8,2.73757]
[1732939871478,0.55,3653.2,3652.8,2.73757]
[1732939871678,0.80600789,3653.2,3652.9,2.73754]
[1732939871886,0.55,3653.2,3652.9,2.73754]
[1732939872101,0.55,3653.0,3652.9,2.73754]
[1732939873910,0.55,3653.0,3652.7,2.73768]
[1732939873911,0.55,3653.0,3652.7,2.73763]
[1732939874317,0.55,3653.0,3652.1,1.6044]
[1732939874485,0.55,3653.0,3652.6,2.7377]
[1732939875226,0.55,3653.0,3652.1,1.6044]
[1732939875514,0.55,3652.8,3652.5,2.7378]
[1732939876019,0.55,3653.0,3652.5,2.7378]
[1732939876584,0.55,3653.0,3652.7,2.73768]
[1732939877179,0.55,3653.0,3652.1,1.6044]
[1732939877376,0.55,3653.0,3652.6,2.73772]
[1732939877600,0.55,3652.8,3652.6,2.73772]
[1732939878178,0.55,3652.8,3652.7,2.7377]
[1732939879720,0.69204356,3652.8,3652.7,2.7377]
[1732939880223,0.55,3652.8,3652.7,2.7377]
[1732939880428,0.55,3652.8,3652.1,1.6044]
[1732939880727,0.13930464,3652.9,3651.6,0.2737]
[1732939880728,3.28797,3652.4,3651.8,2.73836]
[1732939880894,0.55,3652.4,3651.6,1.6364]
[1732939881078,0.80605557,3652.4,3651.8,2.73834]
[1732939881817,1.36578005,3652.4,3651.8,2.73834]
[1732939882025,0.55,3652.2,3651.8,2.73834]
[1732939882432,0.55,3652.2,3651.7,2.73845]
[1732939882581,0.55,3652.2,3651.9,2.73826]
[1732939883444,0.55,3652.2,3651.9,2.68826]
[1732939883734,0.55,3652.2,3652.1,2.73815]
[1732939884323,0.55,3652.2,3651.9,2.73824]
[1732939884482,0.55,3652.2,3652.1,2.73815]
[1732939885003,0.55,3652.2,3652.0,2.73822]
[1732939885912,0.70824936,3652.2,3651.8,2.73837]
[1732939886123,0.96446977,3652.2,3651.8,2.73837]
[1732939886293,0.96446977,3652.2,3651.5,2.73852]
[1732939886294,0.55,3652.0,3651.5,2.73852]
[1732939886501,0.55,3652.0,3651.6,2.73851]
[1732939886703,0.55,3652.1,3651.6,2.73851]
[1732939886999,0.55,3651.9,3651.8,2.73837]
[1732939887227,0.80620215,3652.1,3651.8,2.73837]
[1732939887385,0.55,3652.1,3651.6,2.73846]
[1732939887595,0.80616959,3652.1,3651.6,2.73846]
[1732939887898,0.55,3652.1,3651.6,2.73846]